bitfinex-derivatives/quotes_ETHF0:USTF0_20250807
["timestamp","ask_amount","ask_price","bid_price","bid_amount"]
[1754567654852,2.6304,3834.3,3834.2,4.9067]
[1754567655353,4.1304,3834.3,3834.2,3.7175]
[1754567655546,5.0262,3834.3,3834.2,3.7175]
[1754567655747,5.0262,3834.3,3834.2,4.9067]
[1754567655951,4.1304,3834.3,3834.2,1.1698]
[1754567656257,5.0262,3834.3,3834.2,2.0199]
[1754567656552,4.1304,3834.3,3834.2,4.9067]
[1754567657153,23.7124,3834.3,3834.2,4.9067]
[1754567657546,24.6082,3834.3,3834.2,4.9067]
[1754567657953,23.7124,3834.3,3834.2,4.9067]
[1754567658655,4.1304,3834.2,3834.1,3.2078]
[1754567658853,24.6042,3834.2,3834.1,4.6291]
[1754567659649,24.6042,3834.2,3834.1,3.2078]
[1754567660549,24.6042,3834.2,3834.1,4.0579]
[1754567661055,24.6042,3834.2,3834.1,3.2078]
[1754567663244,3.806,3833.8,3833.7,5.2277]
[1754567663450,24.5982,3833.8,3833.7,5.2277]
[1754567664544,23.7024,3833.8,3833.7,6.9253]
[1754567664749,24.5982,3833.8,3833.7,8.1145]
[1754567664944,24.5982,3833.8,3833.7,6.9253]
[1754567665354,24.5982,3833.8,3833.7,5.2277]
[1754567666058,24.5982,3833.8,3833.7,6.9253]
[1754567666557,24.5982,3833.8,3833.7,2.0199]
[1754567667052,24.5982,3833.8,3833.3,3.2078]
[1754567667053,5.54781,3833.4,3833.3,3.2078]
[1754567667253,0.5217,3832.8,3832.7,0.8501]
[1754567667453,0.5217,3832.8,3832.7,1.4213]
[1754567667454,25.1119,3832.8,3832.7,1.4213]
[1754567667659,25.1119,3832.8,3832.7,2.0199]
[1754567669554,4.8741,3832.7,3832.6,2.0484]
[1754567669961,5.39581,3832.7,3832.6,2.0484]
[1754567670351,5.39581,3832.7,3832.6,4.8434]
[1754567670551,4.53121,3832.7,3832.6,4.8434]
[1754567670759,19.56,3832.8,3832.7,5.36511]
[1754567671859,0.52168,3833.0,3832.9,0.5856]
[1754567672055,20.08068,3833.0,3832.9,3.6254]
[1754567672262,0.52168,3833.0,3832.9,4.8434]
[1754567672457,0.52166,3833.1,3833.0,5.36507]
[1754567672761,20.07966,3833.1,3833.0,5.36507]
[1754567672962,20.82246,3833.1,3833.0,5.36507]
[1754567673464,22.60466,3833.1,3833.0,5.36507]
[1754567673763,22.083,3833.1,3833.0,5.36507]
[1754567674262,1.1989,3833.7,3833.0,3.5405]
[1754567674463,1.9417,3833.5,3833.4,2.4101]
[1754567674655,3.32788,3833.7,3833.6,0.7433]
[1754567674865,24.04288,3833.7,3833.6,1.8885]
[1754567675166,24.04288,3833.7,3833.6,4.8434]
[1754567675362,24.94968,3833.7,3833.6,4.8434]
[1754567675562,24.94968,3833.7,3833.6,2.7917]
[1754567675860,4.48891,3833.4,3833.3,4.8434]
[1754567676065,5.39571,3833.4,3833.3,3.6254]
[1754567676266,24.94971,3833.4,3833.3,3.6254]
[1754567676463,24.4281,3833.4,3833.3,3.6254]
[1754567677065,24.4281,3833.4,3833.2,5.2562]
[1754567677066,2.9703,3833.3,3833.2,5.2562]
[1754567677262,1.9038,3832.8,3832.7,5.618]
[1754567677459,4.8741,3832.8,3832.7,6.4517]
[1754567677661,3.9673,3832.8,3832.7,7.6697]
[1754567677867,3.9673,3832.8,3832.7,8.5729]
[1754567678367,4.8741,3832.8,3832.7,8.0512]
[1754567679268,4.8741,3832.8,3832.7,5.1867]
[1754567679461,4.8741,3832.8,3832.7,3.2078]
[1754567680964,4.8741,3832.8,3832.7,5.4139]
[1754567681170,2.46339,3832.9,3832.8,4.8434]
[1754567681363,22.59069,3832.9,3832.8,4.8434]
[1754567681562,24.03299,3832.9,3832.8,4.8434]
[1754567681970,24.93979,3832.9,3832.8,4.8434]
[1754567682771,24.93979,3832.9,3832.7,3.7295]
[1754567682973,24.93979,3832.9,3832.8,2.0484]
[1754567683270,4.8741,3832.8,3832.7,4.111]
[1754567683565,4.8741,3832.8,3832.7,3.2078]
[1754567685272,4.8741,3832.8,3832.7,8.0512]
[1754567685462,3.9673,3832.8,3832.7,8.0512]
[1754567686261,20.2768,3832.8,3832.7,8.0512]
[1754567686662,3.2078,3833.8,3833.2,2.0484]
[1754567686867,0.52163,3833.4,3833.3,1.8885]
[1754567687068,20.05363,3833.4,3833.3,1.8885]
[1754567687263,20.79643,3833.4,3833.3,1.8885]
[1754567687468,22.57863,3833.4,3833.3,4.8434]
[1754567687663,23.15633,3833.4,3833.3,4.8434]
[1754567687972,24.02093,3833.4,3833.3,4.8434]
[1754567688369,22.6347,3833.4,3833.3,5.36503]
[1754567688569,19.532,3833.4,3833.3,5.36503]
[1754567688964,1.3261,3833.6,3833.5,4.8434]
[1754567689174,20.8541,3833.6,3833.5,4.8434]
[1754567689573,22.6307,3833.6,3833.5,4.8434]
[1754567689774,23.4953,3833.6,3833.5,4.8434]
[1754567690276,24.4021,3833.6,3833.5,4.8434]
[1754567691272,24.4021,3833.6,3833.5,3.6254]
[1754567691473,2.8106,3833.2,3832.8,0.9032]
[1754567691776,1.3261,3833.7,3833.6,2.7917]
[1754567691976,2.42537,3833.8,3833.7,4.8434]
[1754567692276,3.62427,3833.8,3833.7,4.8434]
[1754567692470,0.52156,3833.9,3833.8,4.8434]
[1754567692669,22.56556,3833.9,3833.8,4.8434]
[1754567692867,23.14326,3833.9,3833.8,4.8434]
[1754567693071,24.00786,3833.9,3833.8,4.8434]
[1754567693779,24.91466,3833.9,3833.8,4.8434]
[1754567694380,20.03556,3833.9,3833.8,4.8434]
[1754567694678,24.00286,3833.9,3833.8,4.8434]
[1754567694875,24.90966,3833.9,3833.8,2.7917]
[1754567695380,24.90966,3833.9,3833.8,3.6254]
[1754567695576,0.52158,3833.7,3833.5,5.2562]
[1754567695781,0.52156,3833.8,3833.5,8.5728]
[1754567695972,0.52155,3833.9,3833.7,4.8434]
[1754567696169,19.51,3833.8,3833.7,4.8434]
[1754567696477,19.509,3833.8,3833.7,1.8885]
[1754567696979,19.509,3833.8,3833.7,3.24377]
[1754567697174,19.509,3833.8,3833.7,5.36497]
[1754567697575,19.509,3833.8,3833.7,4.8434]
[1754567697984,20.2518,3833.8,3833.7,4.8434]
[1754567698982,0.7428,3833.8,3833.7,4.8434]
[1754567700083,20.02955,3833.9,3833.7,5.36497]
[1754567700282,20.02955,3833.9,3833.8,1.6545]
[1754567700490,24.82245,3833.9,3833.8,4.7365]
[1754567700884,1.62989,3833.6,3833.5,5.9616]
[1754567701092,24.81649,3833.6,3833.5,1.153]
[1754567701278,24.81649,3833.6,3833.1,3.2078]
[1754567701279,3.8989,3833.2,3833.1,3.2078]
[1754567701480,24.2889,3833.2,3833.1,3.2078]
[1754567701681,1.8378,3832.8,3832.7,6.7953]
[1754567701893,24.2889,3832.8,3832.7,6.7953]
[1754567702084,24.2889,3832.8,3832.7,3.2078]
[1754567702382,24.8106,3832.8,3832.7,3.2078]
[1754567703979,5.31465,3832.4,3832.3,3.2078]
[1754567704180,24.80465,3832.4,3832.3,3.2078]
[1754567704383,23.80465,3832.4,3832.3,4.0415]
[1754567704589,24.2279,3832.4,3832.3,3.2078]
[1754567705787,1.8378,3831.9,3831.8,3.2078]
[1754567705992,24.1834,3831.9,3831.8,3.2078]
[1754567706398,24.1834,3831.9,3830.8,2.25946401]
[1754567706399,1.2761,3831.3,3830.8,1.4082]
[1754567706698,3.30116,3830.9,3830.8,4.7365]
[1754567706892,22.78616,3830.9,3830.8,4.7365]
[1754567707895,20.9881,3830.9,3830.3,0.8337]
[1754567708094,0.7295,3830.4,3830.3,1.933]
[1754567708293,22.78323,3830.4,3830.3,1.153]
[1754567708499,0.52211,3829.9,3829.8,1.933]
[1754567708692,20.73259,3830.0,3829.9,2.7667]
[1754567708892,19.481,3830.0,3829.9,4.7365]
[1754567709296,22.23568,3830.0,3829.9,0.8337]
[1754567709501,25.99008,3830.0,3829.9,2.7667]
[1754567709696,25.99008,3830.0,3829.9,1.4082]
[1754567709897,3.9373,3830.4,3830.3,1.933]
[1754567710098,23.4193,3830.4,3830.3,4.7365]
[1754567710496,24.9224,3830.4,3830.3,4.7365]
[1754567710795,24.9224,3830.4,3830.3,5.25854]
[1754567710992,19.482,3830.4,3830.3,5.25854]
[1754567711194,19.482,3830.4,3830.3,4.7365]
[1754567711505,20.2115,3830.4,3830.3,4.7365]
[1754567711698,21.7146,3830.4,3830.3,4.7365]
[1754567712295,20.2115,3830.4,3830.3,4.7365]
[1754567712605,19.482,3830.4,3830.3,4.7365]
[1754567713298,19.479,3830.4,3830.3,1.933]
[1754567713503,3.2078,3830.9,3830.6,1.933]
[1754567713504,0.52198,3830.8,3830.6,1.933]
[1754567713802,19.99898,3830.7,3830.6,1.933]
[1754567713998,22.2562,3830.7,3830.6,4.7365]
[1754567716898,20.2065,3830.7,3830.6,4.7365]
[1754567717900,2.2326,3831.0,3830.9,5.25846]
[1754567718209,3.30106,3831.6,3831.5,1.153]
[1754567718503,22.77006,3831.6,3831.5,1.153]
[1754567718706,0.52189,3831.4,3830.7,2.8035]
[1754567718898,2.7792,3831.1,3831.0,5.25844]
[1754567719098,20.1985,3831.3,3831.2,2.45491]
[1754567719299,20.1965,3831.3,3831.2,5.25841]
[1754567719606,22.2462,3831.3,3831.2,4.7365]
[1754567720201,20.1965,3831.3,3831.2,4.7365]
[1754567720507,22.6738,3831.3,3830.4,1.9827]
[1754567720805,22.76411,3831.2,3831.1,4.7365]
[1754567721005,22.2422,3831.2,3831.1,4.7365]
[1754567722408,22.2422,3831.2,3831.1,0.8337]
[1754567722610,22.2422,3831.2,3831.1,2.7667]
[1754567722909,22.2422,3831.2,3831.1,1.9867]
[1754567723412,22.2422,3831.2,3831.1,0.8337]
[1754567723610,21.3529,3831.2,3830.4,2.8035]
[1754567723907,0.7295,3830.5,3830.4,3.9028]
[1754567724107,19.456,3830.6,3830.4,4.42482]
[1754567724308,18.456,3830.6,3830.5,4.7365]
[1754567724900,0.52194,3831.0,3830.9,2.45495]
[1754567725100,19.97494,3831.0,3830.9,1.933]
[1754567725506,20.70444,3831.0,3830.9,4.7365]
[1754567725706,21.59374,3831.0,3830.9,4.7365]
[1754567725910,20.86424,3831.0,3830.9,4.7365]
[1754567726106,21.59374,3831.0,3830.9,4.7365]
[1754567726406,22.75414,3831.0,3830.9,4.7365]
[1754567727011,22.75414,3831.0,3830.9,3.5875]
[1754567728203,22.75414,3831.0,3830.9,4.7365]
[1754567728403,22.75414,3831.0,3830.9,1.9867]
[1754567729216,22.75594,3831.0,3830.9,1.9867]
[1754567729808,0.522,3830.6,3830.4,0.52202]
[1754567730009,2.7902,3830.6,3830.5,4.8113]
[1754567730204,21.7082,3830.6,3830.5,4.8113]
[1754567730811,20.1715,3830.6,3830.5,4.8113]
[1754567731405,19.44,3830.6,3830.5,4.8113]
[1754567731911,21.7082,3830.6,3830.5,4.8113]
[1754567732210,22.2487,3830.6,3830.5,4.8113]
[1754567733912,22.2487,3830.6,3830.5,1.4831]
[1754567734110,22.2487,3830.6,3830.5,0.8744]
[1754567734414,1.25358,3830.0,3829.9,5.1665]
[1754567734605,2.79028,3830.0,3829.9,7.1447]
[1754567734803,2.2682,3830.0,3829.9,7.1447]
[1754567735009,0.7315,3830.0,3829.9,8.0191]
[1754567735315,19.95107,3830.1,3829.9,8.54118]
[1754567735613,19.429,3830.1,3830.0,4.8113]
[1754567736009,22.2367,3830.1,3830.0,4.8113]
[1754567736507,1.30503,3830.5,3830.3,0.52204]
[1754567736508,21.3565,3830.4,3830.3,0.52204]
[1754567736710,21.3565,3830.4,3830.3,5.33334]
[1754567737216,21.6932,3830.4,3830.3,5.33334]
[1754567737813,20.1565,3830.4,3830.3,5.33334]
[1754567738015,3.9393,3830.8,3830.7,4.8113]
[1754567738215,22.6318,3830.8,3830.7,4.8113]
[1754567738417,3.2078,3831.2,3831.1,2.48063]
[1754567738616,25.4355,3831.2,3831.1,5.33323]
[1754567738817,26.08968384,3831.2,3831.1,4.8113]
[1754567739419,23.27898384,3831.2,3831.1,4.8113]
[1754567739618,25.54718384,3831.2,3831.1,4.8113]
[1754567739816,26.08768384,3831.2,3831.1,3.7073]
[1754567740018,26.08768384,3831.2,3831.1,2.8331]
[1754567740321,3.86198384,3831.2,3831.1,4.8113]
[1754567740518,3.86198384,3831.7,3831.6,4.45896]
[1754567740821,22.6218,3831.7,3831.6,5.33316]
[1754567741114,24.89,3831.7,3831.6,5.33316]
[1754567741317,25.4305,3831.7,3831.6,5.33316]
[1754567741518,25.4305,3831.7,3831.6,1.4831]
[1754567741715,0.7315,3831.1,3830.9,1.9782]
[1754567741918,2.8087,3831.1,3831.0,4.8113]
[1754567742116,2.8087,3831.1,3831.0,5.33324]
[1754567742512,2.8087,3831.1,3831.0,2.57434]
[1754567742731,22.2167,3831.1,3831.0,5.33324]
[1754567744124,2.13056,3831.6,3831.5,2.8329]
[1754567744326,21.53656,3831.6,3831.5,4.8113]
[1754567744626,23.39087398,3831.6,3831.5,4.8113]
[1754567745320,23.39087398,3831.6,3831.5,2.0524]
[1754567745521,22.86901398,3831.6,3831.5,0.8744]
[1754567745720,22.86901398,3831.6,3831.5,2.0524]
[1754567746023,22.86901398,3831.6,3831.5,0.8744]
[1754567747619,0.52189,3831.4,3831.2,0.8744]
[1754567747824,20.671,3831.3,3831.2,2.0524]
[1754567748129,22.2077,3831.3,3831.2,4.8113]
[1754567750124,3.2078,3831.7,3831.5,0.52186]
[1754567750424,22.1937,3831.6,3831.5,1.9587]
[1754567750723,1.38584509,3831.6,3831.5,1.9587]
[1754567750918,20.1155,3831.6,3831.5,4.8113]
[1754567751118,20.76984509,3831.6,3831.5,4.8113]
[1754567751723,22.84704509,3831.6,3831.5,4.8113]
[1754567752123,22.84604509,3831.6,3831.5,4.0306]
[1754567752323,22.84604509,3831.6,3831.5,4.8113]
[1754567753030,22.84604509,3831.6,3831.5,3.9371]
[1754567753331,22.84604509,3831.6,3831.5,4.8113]
[1754567753833,22.84604509,3831.6,3831.5,1.4831]
[1754567754033,22.84604509,3831.6,3831.5,2.0524]
[1754567755426,21.30934509,3831.6,3831.2,0.8744]
[1754567755625,3.2078,3831.7,3831.4,2.0524]
[1754567755830,4.4798,3831.7,3831.6,4.8113]
[1754567756031,23.3083,3831.7,3831.6,4.8113]
[1754567756934,20.1005,3831.7,3831.6,4.8113]
[1754567757237,22.1777,3831.7,3831.6,4.8113]
[1754567757933,20.569,3831.7,3831.0,0.8744]
[1754567758132,0.5219,3831.4,3831.2,0.52191]
[1754567758332,2.7901,3831.4,3831.3,4.8113]
[1754567758529,3.3306,3831.4,3831.3,4.8113]
[1754567759433,22.6896,3831.4,3831.3,4.8113]
[1754567760531,22.1677,3831.4,3831.3,4.8113]
[1754567761533,22.1677,3831.4,3831.3,2.8331]
[1754567762434,22.1677,3831.4,3831.3,4.7988]
[1754567762936,22.1677,3831.4,3831.3,5.3207]
[1754567763933,22.1677,3831.4,3831.3,4.7988]
[1754567764132,22.1677,3831.4,3831.3,0.8744]
[1754567764337,22.1677,3831.4,3831.3,2.0529]
[1754567764733,22.1677,3831.4,3831.3,3.6412]
[1754567765040,22.1677,3831.4,3831.3,4.764]
[1754567769341,22.1677,3831.4,3831.3,2.7983]
[1754567770239,22.1677,3831.4,3831.3,2.0529]
[1754567770440,3.2078,3831.4,3831.3,4.764]
[1754567770739,20.1077,3831.4,3831.3,4.764]
[1754567770940,22.0534,3831.4,3831.3,4.764]
[1754567772736,3.2078,3831.8,3831.7,4.7226]
[1754567772944,37.591,3832.5,3831.4,1.30472]
[1754567772945,0.52181,3832.0,3831.9,4.7226]
[1754567773146,19.84081,3832.0,3831.9,4.7226]
[1754567773346,20.49680326,3832.0,3831.9,4.7226]
[1754567773536,19.97499326,3832.0,3831.9,4.7226]
[1754567774241,19.319,3832.0,3831.9,4.7226]
[1754567774445,37.591,3832.5,3832.4,4.7226]
[1754567774446,38.7502,3832.5,3832.4,4.7226]
[1754567774634,59.02237417,3832.5,3832.4,4.7226]
[1754567775134,59.54411417,3832.5,3832.4,4.7226]
[1754567775334,59.02237417,3832.5,3832.4,4.7226]
[1754567775635,0.65567417,3832.5,3832.4,4.7226]
[1754567775834,0.52171,3832.8,3832.6,4.7226]
[1754567776038,25.2442,3832.7,3832.6,4.7226]
[1754567779140,0.3025,3832.6,3832.0,7.6192]
[1754567779438,2.2434,3832.1,3832.0,7.0974]
[1754567779644,21.5404,3832.1,3832.0,7.0974]
[1754567779841,3.5103,3833.5,3833.1,1.9558]
[1754567780046,5.4512,3833.5,3833.4,4.7226]
[1754567780344,25.7518,3833.5,3833.4,4.7226]
[1754567780545,6.58924472,3833.5,3833.4,4.7226]
[1754567780744,5.9352,3833.5,3833.4,4.7226]
[1754567780936,23.2805,3833.5,3833.4,4.7226]
[1754567781137,22.4988,3833.5,3833.4,4.7226]
[1754567781546,25.2262,3833.5,3833.4,4.7226]
[1754567783049,25.2262,3833.5,3832.8,0.52169]
[1754567783050,1.2657,3833.0,3832.9,2.7569]
[1754567783346,21.53608,3833.0,3832.9,4.7226]
[1754567783543,22.31778,3833.0,3832.9,4.7226]
[1754567784251,22.31778,3833.0,3832.9,0.833]
[1754567784548,2.35291,3832.7,3832.6,0.833]
[1754567784740,21.63191,3832.7,3832.6,0.833]
[1754567785145,21.63191,3832.7,3832.6,1.4386]
[1754567785338,24.83971,3832.7,3832.6,1.4386]
[1754567785647,21.63191,3832.7,3832.6,2.5614]
[1754567785849,21.63191,3832.7,3832.6,3.8797]
[1754567786149,21.63191,3832.7,3832.6,4.7226]
[1754567787746,3.2078,3833.1,3832.8,2.7987]
[1754567787947,19.79368,3833.0,3832.9,4.7226]
[1754567788244,4.0384,3833.5,3833.4,3.9772]
[1754567788445,24.8286,3833.5,3833.4,4.7226]
[1754567789150,24.8301,3833.5,3833.4,4.7226]
[1754567789350,24.8301,3833.5,3833.4,3.8797]
[1754567789551,24.8301,3833.5,3833.4,0.833]
[1754567789750,24.8311,3833.5,3833.4,0.833]
[1754567790549,24.8301,3833.5,3833.4,1.4266]
[1754567790753,5.5621,3833.5,3833.4,3.8074]
[1754567791053,24.8211,3833.5,3833.4,4.6313]
[1754567791752,5.5621,3833.5,3833.4,4.6313]
[1754567791952,22.9854,3833.5,3833.4,4.6313]
[1754567792151,23.7636,3833.5,3833.4,4.6313]
[1754567792847,23.7636,3833.5,3833.4,3.8074]
[1754567792848,3.2078,3833.5,3833.4,3.8074]
[1754567793053,3.2078,3833.5,3833.4,4.6313]
[1754567794752,4.8873,3833.5,3833.4,4.6313]
[1754567795752,4.8873,3833.5,3833.4,0.833]
[1754567795955,4.8883,3833.5,3833.4,0.833]
[1754567796656,2.20117,3833.0,3832.9,4.6853]
[1754567796853,21.44117,3833.0,3832.9,4.6853]
[1754567799458,20.47957,3833.0,3832.9,4.6853]
[1754567800257,19.76167,3833.0,3832.9,4.6853]
[1754567800555,0.52163,3833.3,3833.1,1.8753]
[1754567800760,0.52163,3833.3,3833.2,4.6853]
[1754567801062,19.74963,3833.3,3833.2,4.6853]
[1754567801263,20.52933,3833.3,3833.2,4.6853]
[1754567801560,21.42913,3833.3,3833.2,4.6853]
[1754567802656,20.62823,3833.3,3833.2,4.6853]
[1754567802865,1.23803,3833.3,3833.2,4.6853]
[1754567803158,0.52161,3833.5,3833.2,5.20693]
[1754567803463,19.74162,3833.4,3833.3,4.6853]
[1754567804157,20.62022,3833.4,3833.3,4.6853]
[1754567804362,21.42112,3833.4,3833.3,4.6853]
[1754567806562,19.74162,3833.4,3833.3,4.6853]
[1754567808864,1.06038,3832.2,3832.1,2.25946401]
[1754567809167,0.52179,3832.2,3832.1,3.8614]
[1754567809363,19.72379,3832.2,3832.1,3.8614]
[1754567809567,20.26239,3832.2,3832.1,3.8614]
[1754567809765,21.07079,3832.2,3832.1,3.8614]
[1754567810969,21.07079,3832.2,3832.1,4.6853]
[1754567812270,20.26239,3832.2,3832.1,4.6853]
[1754567812765,3.72945,3833.1,3833.0,3.0939]
[1754567813071,0.52165,3833.1,3833.0,4.6853]
[1754567814069,0.52165,3833.1,3833.0,3.8614]
[1754567814266,1.86871,3832.7,3832.6,4.6853]
[1754567814478,21.05971,3832.7,3832.6,4.6853]
[1754567814866,19.71271,3832.7,3832.6,4.6853]
[1754567815165,0.5217,3832.8,3832.7,0.8239]
[1754567815369,19.71169,3832.9,3832.8,4.6853]
[1754567815570,3.2078,3833.6,3833.3,4.6853]
[1754567815772,19.7096,3833.5,3833.4,4.6853]
[1754567815962,1.33,3833.5,3833.4,4.6853]
[1754567816163,0.52155,3833.9,3833.8,1.8753]
[1754567816365,19.187,3834.2,3834.1,1.8753]
[1754567816668,0.52139,3835.1,3834.9,4.6853]
[1754567817169,2.19182192,3836.5,3834.9,3.2078]
[1754567817369,1.9466,3835.7,3835.4,1.7109]
[1754567817569,3.98938192,3836.6,3835.4,0.887]
[1754567817570,2.46793,3835.5,3835.4,0.887]
[1754567817770,3.37183,3835.5,3835.4,0.887]
[1754567818278,0.52138,3835.1,3835.0,2.81]
[1754567818567,2.46798,3835.1,3835.0,2.81]
[1754567818774,0.52137,3835.2,3835.0,2.81]
[1754567818975,0.52137,3835.2,3835.1,2.81]
[1754567819470,2.43877,3835.2,3835.1,2.81]
[1754567820268,2.43877,3835.2,3835.1,0.887]
[1754567820570,3.27849,3835.0,3834.9,3.2078]
[1754567820977,3.27849,3835.0,3834.9,4.0818]
[1754567822574,2.43879,3835.0,3834.9,4.0818]
[1754567823173,3.27849,3835.0,3834.9,4.0818]
[1754567823375,5.11559,3835.0,3834.9,4.0818]
[1754567823675,5.11559,3835.0,3834.9,3.2078]
[1754567825377,5.11559,3835.0,3834.9,2.67289]
[1754567827084,5.11559,3835.0,3834.9,2.14068]
[1754567827779,4.27589,3835.0,3834.9,2.14068]
[1754567828078,19.67839,3835.0,3834.9,6.80378]
[1754567828382,0.52139,3835.0,3834.9,6.80378]
[1754567828582,24.27059,3835.0,3834.9,2.14068]
[1754567828886,24.27059,3835.0,3834.9,3.01468]
[1754567829276,24.27059,3835.0,3834.9,2.14068]
[1754567830578,24.27059,3835.0,3833.2,1.3041]
[1754567830579,0.5218,3832.0,3830.8,2.17892]
[1754567830785,19.67078,3832.2,3832.1,1.9318]
[1754567830985,19.67078,3832.2,3832.1,3.01222122]
[1754567831183,21.58818,3832.2,3832.1,1.91482122]
[1754567831484,3.2789,3832.0,3831.9,0.93946946]
[1754567833081,2.4392,3832.0,3831.9,0.93946946]
[1754567833385,2.4392,3832.0,3831.9,1.81346946]
[1754567834190,3.2789,3832.0,3831.9,1.81346946]
[1754567835088,0.5218,3832.0,3831.9,3.74526946]
[1754567838788,1.6478,3832.0,3831.9,3.74526946]
[1754567839293,2.4392,3832.0,3831.9,3.74526946]
[1754567839590,0.5218,3832.0,3831.9,3.74526946]
[1754567839990,19.67479,3832.1,3832.0,1.7084]
[1754567840194,19.67479,3832.1,3832.0,2.8058]
[1754567842398,19.153,3832.1,3832.0,2.8058]
[1754567842694,0.52178,3832.2,3832.0,2.8058]
[1754567842891,0.5218,3832.0,3831.9,0.93946946]
[1754567843385,0.5218,3832.0,3831.9,5.60256946]
[1754567845900,19.6718,3832.0,3831.9,5.60256946]
[1754567846500,19.6718,3832.0,3831.9,3.67076946]
[1754567846501,24.266,3832.0,3831.9,3.67076946]
[1754567846801,23.4263,3832.0,3831.9,5.60256946]
[1754567847203,20.4008,3832.0,3831.9,5.60256946]
[1754567847494,20.4008,3832.0,3831.9,1.81346946]
[1754567847694,23.4263,3832.0,3831.9,1.81346946]
[1754567847901,24.266,3832.0,3831.9,1.81346946]
[1754567849295,24.266,3832.0,3831.9,2.39346946]
[1754567849496,2.39656,3831.6,3831.5,0.8505]
[1754567849692,1.3048,3831.2,3830.7,1.8956]
[1754567849897,3.78547,3830.8,3830.7,3.0212]
[1754567850298,3.78547,3830.8,3830.7,4.6691]
[1754567851603,4.32477,3830.8,3830.7,4.6691]
[1754567852905,19.66997,3830.9,3830.8,4.6691]
[1754567853705,0.52195,3831.0,3830.8,4.6691]
[1754567853906,19.148,3830.9,3830.8,4.6691]
[1754567854406,19.147,3830.9,3830.8,4.6691]
[1754567854807,0.5219,3831.3,3831.2,4.6691]
[1754567855005,0.52187,3831.6,3831.5,0.5731]
[1754567855303,19.66787,3831.6,3831.5,4.6691]
[1754567855510,19.66787,3831.6,3830.1,2.61031]
[1754567855511,0.5219,3831.4,3831.1,1.923]
[1754567855704,2.92971,3831.3,3831.2,4.6691]
[1754567856007,4.32471,3831.3,3831.2,4.6691]
[1754567856202,4.32474,3831.1,3831.0,4.6691]
[1754567856404,23.47174,3831.1,3831.0,4.6691]
[1754567857098,22.9498,3831.1,3831.0,4.6691]
[1754567857299,0.7283,3831.1,3831.0,4.6691]
[1754567857503,0.52189,3831.4,3831.3,4.6691]
[1754567857713,19.66689,3831.4,3831.3,4.6691]
[1754567857914,0.52189,3831.4,3831.3,4.6691]
[1754567858114,19.66689,3831.4,3831.3,4.6691]
[1754567859407,20.39519,3831.4,3831.3,4.6691]
[1754567859914,23.46969,3831.4,3831.3,4.6691]
[1754567860412,23.65975412,3831.4,3831.3,5.191]
[1754567860606,0.71195412,3831.4,3831.3,5.191]
[1754567860804,19.144,3831.4,3831.3,5.191]
[1754567861013,19.85595412,3831.4,3831.3,5.191]
[1754567861613,19.85595412,3831.4,3831.3,5.40337789]
[1754567861910,0.71195412,3831.4,3831.3,5.40337789]
[1754567862110,19.143,3831.4,3831.3,5.40337789]
[1754567862312,19.85495412,3831.4,3831.3,5.40337789]
[1754567862607,20.58125412,3831.4,3831.3,5.40337789]
[1754567864607,23.65575412,3831.4,3831.3,5.40337789]
[1754567865011,24.50525412,3831.4,3831.3,0.73427789]
[1754567865712,24.50525412,3831.4,3831.3,2.15787789]
[1754567865910,24.50525412,3831.4,3831.3,3.48037789]
[1754567866416,24.50525412,3831.4,3831.3,5.40337789]
[1754567867417,23.65575412,3831.4,3831.3,5.40337789]
[1754567868208,0.08735412,3831.4,3831.3,5.40337789]
[1754567868415,37.578,3831.9,3831.3,5.40337789]
[1754567868416,0.08735412,3831.8,3831.7,5.19095]
[1754567868614,22.3975,3832.2,3832.1,5.19089]
[1754567868913,20.4694,3832.2,3832.1,5.40326789]
[1754567869121,19.8623,3832.2,3832.1,5.40326789]
[1754567869615,20.4694,3832.2,3832.1,5.42101951]
[1754567869819,22.0801,3832.2,3832.1,5.42101951]
[1754567870022,22.9358,3832.2,3832.1,5.42101909]
[1754567871821,3.8028,3832.2,3832.1,5.42101909]
[1754567872021,22.9338,3832.2,3832.1,5.42101909]
[1754567873019,3.8028,3832.2,3832.1,5.42101909]
[1754567873218,22.9308,3832.2,3832.1,5.42101909]
[1754567873617,1.90513192,3832.8,3832.5,1.6479]
[1754567873618,1.38342192,3832.8,3832.5,1.6479]
[1754567873819,22.9298,3832.7,3832.6,5.19082]
[1754567874125,22.9288,3832.7,3832.6,5.19082]
[1754567874823,22.9288,3832.7,3832.6,5.42081456]
[1754567875222,23.7783,3832.7,3832.6,4.89909456]
[1754567875626,23.7783,3832.7,3832.6,4.89906184]
[1754567875924,23.16474822,3832.7,3832.6,4.89906184]
[1754567876822,23.16074822,3832.7,3832.6,4.89906184]
[1754567877022,23.15974822,3832.7,3832.6,4.89906184]
[1754567877326,4.03874822,3832.7,3832.6,4.89906184]
[1754567877625,22.9228,3832.7,3832.6,4.89906184]
[1754567877825,24.00824822,3832.7,3832.6,4.6691]
[1754567878526,23.7723,3832.7,3832.6,4.6691]
[1754567878721,24.00813869,3832.7,3832.6,4.6691]
[1754567879316,21.0009,3832.7,3832.5,0.52173]
[1754567879522,3.7549,3832.6,3832.5,3.55263]
[1754567879922,3.7549,3832.6,3832.0,0.8008]
[1754567880117,1.3134,3832.3,3832.2,2.74018]
[1754567880322,22.8709,3832.3,3832.2,3.33178]